Workbook

Sheet شيت الرابع
A1: غ | C1: إدارة قويسنا التعليمية0 | F1: =TEXT(F3,"dddd") -> الأحد | I1: بداية رقم الجلوس | J1: عدد التلاميذ | N1: منقطعين | P1: لغة عربية | W1: رياضيات | AD1: لغة إنجليزية | AK1: دراسات | AR1: علــــــوم | AY1: نشاط (فنى) | BD1: نشاط (رياضى) | BI1: نشاط (حاسب آلى) | BN1: نشاط (1) | BS1: نشاط (2) | CA1: التربية الدينية
C2: مدرسة عرب الرمال الإبتدائية سكة حديد0 | K2: =COUNT(G12:G156) -> 6 | N2: =COUNTIF(BX12:BX17,"غ") -> 1 | P2: نصف العام | S2: آخر العام | W2: نصف العام | Z2: آخر العام | AD2: نصف العام | AG2: آخر العام | AK2: نصف العام | AN2: آخر العام | AR2: نصف العام | AU2: آخر العام | AZ2: ناجح | BB2: =BB4-BB3 -> 2 | BE2: ناجح | BG2: =BG4-BG3 -> 2 | BJ2: ناجح | BL2: =BL4-BL3 -> 2 | BO2: ناجح | BQ2: =BQ4-BQ3 -> 2 | BT2: ناجح | BV2: =BV4-BV3 -> 2 | CA2: نصف العام | CD2: آخر العام
F3: =TODAY() -> 2018-04-15 | P3: ناجح | Q3: =Q5-Q4 -> 4 | S3: ناجح | T3: =T5-T4 -> 3 | U3: دون المستوى | W3: ناجح | X3: =X5-X4 -> 2 | Z3: ناجح | AA3: =AA5-AA4 -> 2 | AB3: دون المستوى | AD3: ناجح | AE3: =AE5-AE4 -> 2 | AG3: ناجح | AH3: =AH5-AH4 -> 2 | AI3: دون المستوى | AK3: ناجح | AL3: =AL5-AL4 -> 2 | AN3: ناجح | AO3: =AO5-AO4 -> 2 | AP3: دون المستوى | AR3: ناجح | AS3: =AS5-AS4 -> 2 | AU3: ناجح | AV3: =AV5-AV4 -> 2 | AW3: دون المستوى | AZ3: راسب | BB3: =COUNTIF(BC12:BC17,"دون المستوى") -> 2 | BE3: راسب | BG3: =COUNTIF(BH12:BH17,"دون المستوى") -> 2 | BJ3: راسب | BL3: =COUNTIF(BM12:BM17,"دون المستوى") -> 2 | BO3: راسب | BQ3: =COUNTIF(BR12:BR17,"دون المستوى") -> 2 | BT3: راسب | BV3: =COUNTIF(BW12:BW17,"دون المستوى") -> 2 | CA3: ناجح | CB3: =CB5-CB4 -> 2 | CD3: ناجح | CE3: =CE5-CE4 -> 2 | CF3: دون المستوى
H4: دمج ( 3 ) | I4: 1 | P4: راسب | Q4: =SUMPRODUCT(--(Q12:Q17<20)+(Q12:Q17="غ")) -> 1 | S4: راسب | T4: =COUNTIF(V12:V17,"دون المستوى") -> 2 | U4: =COUNTIF(V12:V17,"دون المستوى") -> 2 | W4: راسب | X4: =SUMPRODUCT(--(X12:X17<20)+(X12:X17="غ")) -> 2 | Z4: راسب | AA4: =COUNTIF(AC12:AC17,"دون المستوى") -> 2 | AB4: =COUNTIF(AC12:AC17,"دون المستوى") -> 2 | AD4: راسب | AE4: =SUMPRODUCT(--(AE12:AE17<20)+(AE12:AE17="غ")) -> 2 | AG4: راسب | AH4: =COUNTIF(AJ12:AJ17,"دون المستوى") -> 2 | AI4: =COUNTIF(AJ12:AJ17,"دون المستوى") -> 2 | AK4: راسب | AL4: =SUMPRODUCT(--(AL12:AL17<20)+(AL12:AL17="غ")) -> 2 | AN4: راسب | AO4: =COUNTIF(AQ12:AQ17,"دون المستوى") -> 2 | AP4: =COUNTIF(AQ12:AQ17,"دون المستوى") -> 2 | AR4: راسب | AS4: =SUMPRODUCT(--(AS12:AS17<20)+(AS12:AS17="غ")) -> 2 | AU4: راسب | AV4: =COUNTIF(AX12:AX17,"دون المستوى") -> 2 | AW4: =COUNTIF(AX12:AX17,"دون المستوى") -> 2 | AZ4: حاضر | BB4: =$K$2-BB5 -> 4 | BE4: حاضر | BG4: =$K$2-BG5 -> 4 | BJ4: حاضر | BL4: =$K$2-BL5 -> 4 | BO4: حاضر | BQ4: =$K$2-BQ5 -> 4 | BT4: حاضر | BV4: =$K$2-BV5 -> 4 | CA4: راسب | CB4: =SUMPRODUCT(--(CB12:CB17<20)+(CB12:CB17="غ")) -> 2 | CD4: راسب | CE4: =COUNTIF(CG12:CG17,"دون المستوى") -> 2 | CF4: =COUNTIF(CG12:CG17,"دون المستوى") -> 2
F5: =TODAY() -> 2018-04-15 | H5: باقى للإعاده ( عاطف محمد السيد يوسف ) | P5: حاضر | Q5: =K2-Q6 -> 5 | S5: حاضر | T5: =$K$2-T6 -> 5 | W5: حاضر | X5: =$K$2-X6 -> 4 | Z5: حاضر | AA5: =$K$2-AA6 -> 4 | AD5: حاضر | AE5: =$K$2-AE6 -> 4 | AG5: حاضر | AH5: =$K$2-AH6 -> 4 | AK5: حاضر | AL5: =$K$2-AL6 -> 4 | AN5: حاضر | AO5: =$K$2-AO6 -> 4 | AR5: حاضر | AS5: =$K$2-AS6 -> 4 | AU5: حاضر | AV5: =$K$2-AV6 -> 4 | AY5: غياب | AZ5: =COUNTIF(AZ12:AZ17,"غ") -> 2 | BB5: =COUNTIF(BB12:BB17,"غ") -> 2 | BD5: غياب | BE5: =COUNTIF(BE12:BE17,"غ") -> 2 | BG5: =COUNTIF(BG12:BG17,"غ") -> 2 | BI5: غياب | BJ5: =COUNTIF(BJ12:BJ17,"غ") -> 2 | BL5: =COUNTIF(BL12:BL17,"غ") -> 2 | BN5: غياب | BO5: =COUNTIF(BO12:BO17,"غ") -> 2 | BQ5: =COUNTIF(BQ12:BQ17,"غ") -> 2 | BS5: غياب | BT5: =COUNTIF(BT12:BT17,"غ") -> 2 | BV5: =COUNTIF(BV12:BV17,"غ") -> 2 | CA5: حاضر | CB5: =$K$2-CB6 -> 4 | CD5: حاضر | CE5: =$K$2-CE6 -> 4
P6: غياب | Q6: =COUNTIF(Q12:Q17,"غ") -> 1 | S6: غياب | T6: =COUNTIF(S12:S17,"غ") -> 1 | W6: غياب | X6: =COUNTIF(X12:X17,"غ") -> 2 | Z6: غياب | AA6: =COUNTIF(Z12:Z17,"غ") -> 2 | AD6: غياب | AE6: =COUNTIF(AE12:AE17,"غ") -> 2 | AG6: غياب | AH6: =COUNTIF(AG12:AG17,"غ") -> 2 | AK6: غياب | AL6: =COUNTIF(AL12:AL17,"غ") -> 2 | AN6: غياب | AO6: =COUNTIF(AN12:AN17,"غ") -> 2 | AR6: غياب | AS6: =COUNTIF(AS12:AS17,"غ") -> 2 | AU6: غياب | AV6: =COUNTIF(AU12:AU17,"غ") -> 2 | AY6: النسبة المئوية | BB6: =BB2/BB4 -> 0.5 | BD6: النسبة المئوية | BG6: =BG2/BG4 -> 0.5 | BI6: النسبة المئوية | BL6: =BL2/BL4 -> 0.5 | BN6: النسبة المئوية | BQ6: =BQ2/BQ4 -> 0.5 | BS6: النسبة المئوية | BV6: =BV2/BV4 -> 0.5 | CA6: غياب | CB6: =COUNTIF(CB12:CB17,"غ") -> 2 | CD6: غياب | CE6: =COUNTIF(CD12:CD17,"غ") -> 2
P7: النسبة | S7: النسبة | T7: =T3/T5 -> 0.6 | W7: النسبة | X7: =X3/X5 -> 0.5 | Z7: النسبة | AA7: =AA3/AA5 -> 0.5 | AD7: النسبة | AE7: =AE3/AE5 -> 0.5 | AG7: النسبة | AH7: =AH3/AH5 -> 0.5 | AK7: النسبة | AL7: =AL3/AL5 -> 0.5 | AN7: النسبة | AO7: =AO3/AO5 -> 0.5 | AR7: النسبة | AS7: =AS3/AS5 -> 0.5 | AU7: النسبة | AV7: =AV3/AV5 -> 0.5 | CA7: النسبة | CB7: =CB3/CB5 -> 0.5 | CD7: النسبة | CE7: =CE3/CE5 -> 0.5
A8: الرقم القومى | B8: تاريخ الميلاد | C8: سرى ترم أول | D8: سرى ترم ثان | E8: الرقم السرى ترم أول | F8: الرقم السرى ترم ثان | G8: م | H8: إســــــــم التلميذ | I8: رقم الجلوس | J8: تاريخ الميلاد | M8: السن فى أول أكتوبر | P8: لغة عربية | V8: المستوى | W8: رياضيات | AC8: المستوى | AD8: لغة إنجليزية | AJ8: المستوى | AK8: دراسات | AQ8: المستوى | AR8: علوم | AX8: المستوى | AY8: نشاط (فنى) | BC8: المستوى | BD8: نشاط (رياضى) | BH8: المستوى | BI8: نشاط (حاسب آلى) | BM8: المستوى | BN8: نشاط (1) | BR8: المستوى | BS8: نشاط (2) | BW8: المستوى | BX8: المجموع الكلى | BY8: المستوى | BZ8: المجموع بدون أنشطة | CA8: التربية الدينية | CG8: المستوى | CH8: المجموع الإعتبارى | CI8: الترتيب | EC8: نسبة 65
P9: نصف العام | R9: آخر العام | T9: مجموع | U9: الدرجة | W9: نصف العام | Y9: آخر العام | AA9: مجموع | AB9: الدرجة | AD9: نصف العام | AF9: آخر العام | AH9: مجموع | AI9: الدرجة | AK9: نصف العام | AM9: آخر العام | AO9: مجموع | AP9: الدرجة | AR9: نصف العام | AT9: آخر العام | AV9: مجموع | AW9: الدرجة | AY9: نصف العام | AZ9: آخر العام | BA9: مجموع | BB9: الدرجة | BD9: نصف العام | BE9: آخر العام | BF9: مجموع | BG9: الدرجة | BI9: نصف العام | BJ9: آخر العام | BK9: مجموع | BL9: الدرجة | BN9: نصف العام | BO9: آخر العام | BP9: مجموع | BQ9: الدرجة | BS9: نصف العام | BT9: آخر العام | BU9: مجموع | BV9: الدرجة | CA9: نصف العام | CC9: آخر العام | CE9: مجموع | CF9: الدرجة | CY9: الصف الخامس 2017/2016 | DJ9: الصف الرابع 2018/2017
P10: تقويم شامل | Q10: إختبار | R10: ملف | S10: إختبار | W10: تقويم شامل | X10: إختبار | Y10: تقويم شامل | Z10: إختبار | AD10: تقويم شامل | AE10: إختبار | AF10: تقويم شامل | AG10: إختبار | AK10: تقويم شامل | AL10: إختبار | AM10: تقويم شامل | AN10: إختبار | AR10: تقويم شامل | AS10: إختبار | AT10: تقويم شامل | AU10: إختبار | AY10: تقويم شامل | AZ10: تقويم شامل | BD10: تقويم شامل | BE10: تقويم شامل | BI10: تقويم شامل | BJ10: تقويم شامل | BN10: تقويم شامل | BO10: تقويم شامل | BS10: تقويم شامل | BT10: تقويم شامل | CA10: تقويم شامل | CB10: إختبار | CC10: ملف | CD10: إختبار | CV10: ناجح | CW10: =COUNTIF(CV12:CV73,"ناجح") -> 0 | CY10: إحصاء الناجحون | DJ10: الأوائــــــــــــــل بدون الأنشطه آخر العام | DQ10: درجـــــــــــــات الأوائــــــــــــــل | EC10: عربى | ED10: رياضيات | EE10: إنجليزى | EF10: دراسات | EG10: علوم | EH10: فنى | EI10: رياضى | EJ10: نشاط1 | EK10: نشاط2 | EL10: دين
J11: يوم | K11: شهر | L11: سنة | M11: 2016-10-01 | P11: 40 | Q11: 60 | R11: 40 | S11: 60 | T11: =P11+Q11+R11+S11 -> 200 | U11: 100 | W11: 40 | X11: 60 | Y11: 40 | Z11: 60 | AA11: =W11+X11+Y11+Z11 -> 200 | AB11: 80 | AD11: 40 | AE11: 60 | AF11: 40 | AG11: 60 | AH11: =AD11+AE11+AF11+AG11 -> 200 | AI11: 40 | AK11: 40 | AL11: 60 | AM11: 40 | AN11: 60 | AO11: =AK11+AL11+AM11+AN11 -> 200 | AP11: 40 | AR11: 40 | AS11: 60 | AT11: 40 | AU11: 48+12 | AV11: 200 | AW11: 40 | AY11: 100 | AZ11: 100 | BA11: 200 | BB11: 20 | BD11: 100 | BE11: 100 | BF11: 200 | BG11: 20 | BI11: 100 | BJ11: 100 | BK11: 200 | BL11: 20 | BN11: 100 | BO11: 100 | BP11: 200 | BQ11: 20 | BS11: 100 | BT11: 100 | BU11: 200 | BV11: 20 | BX11: 340 | BZ11: 300 | CA11: 40 | CB11: 60 | CC11: 40 | CD11: 60 | CE11: =CA11+CB11+CC11+CD11 -> 200 | CF11: 40 | CH11: 360 | CK11: النتيجة النهائية | CS11: النتيجة النهائية | CV11: دور ثان | CW11: =COUNTIF(CV12:CV73,"دور ثان") -> 6 | CY11: عربى | CZ11: رياضيات | DA11: إنجليزى | DB11: دراسات | DC11: علوم | DD11: فنى | DE11: رياضى | DF11: نشاط1 | DG11: نشاط2 | DH11: دين | DJ11: رقم الجلوس | DK11: الاســــــــــــــــــم | DL11: المجموع | DM11: الترتيب | DN11: النسبة المئوية | DP11: الإســـــــم | DQ11: عربى | DR11: رياضيات | DS11: إنجليزى | DT11: دراسات | DU11: علوم | DV11: مجموع | DW11: فنى | DX11: رياضى | DY11: نشاط1 | DZ11: نشاط2 | EA11: دين | EC11: =COUNT(EC12:EC312) -> 6 | ED11: =COUNT(ED12:ED312) -> 6 | EE11: =COUNT(EE12:EE312) -> 5 | EF11: =COUNT(EF12:EF312) -> 6 | EG11: =COUNT(EG12:EG312) -> 6 | EH11: =COUNT(EH12:EH17) -> 6 | EI11: =COUNT(EI12:EI17) -> 6 | EJ11: =COUNT(EJ12:EJ17) -> 6 | EK11: =COUNT(EK12:EK17) -> 6 | EL11: =COUNT(EL12:EL312) -> 6
A12: 30808081702553 | B12: =TEXT(LEFT(A12,7)+17000000,"####-##-##")+0 -> 2008-08-08 | E12: 70 | G12: =IF(H12="","",SUBTOTAL(3,$H$12:H12)) -> 1 | H12: عمير محمد فهمى احمد الحنفى | J12: =DAY(B12) -> 8 | K12: =MONTH(B12) -> 8 | L12: =YEAR(B12) -> 2008 | M12: =DATEDIF(DATE(L12,K12,J12),$M$11,"md") -> 23 | N12: =DATEDIF(DATE(L12,K12,J12),$M$11,"ym") -> 1 | O12: =DATEDIF(DATE(L12,K12,J12),$M$11,"y") -> 8 | P12: 40 | Q12: 60 | R12: 40 | S12: 60 | T12: =IF(AND(P12="غ",Q12="غ",R12="غ",S12="غ"),"غ",IF(AND(P12="صفر",Q12="صفر",R12="صفر",S12="صفر"),"صفر",SUM(P12:S12))) -> 200 | U12: =IF(AND(T12="غ"),"غ",IF(AND(T12="صفر"),"صفر",T12*100/200)) -> 100 | V12: =IF(OR(U12="",S12=""),"",IF(OR(S12<18,S12="غ",U12="غ",S12="صفر",U12="صفر"),"دون المستوى",IF(U12>=85,"ممتاز",IF(U12>=75,"جيد جداً",IF(U12>=65,"جيد",IF(U12>=50,"مقبول",IF(OR(U12<50,U12="غ",U12="صفر"),"دون المستوى"))))))) -> ممتاز | W12: 38 | X12: 42 | AA12: =IF(AND(W12="غ",X12="غ",Y12="غ",Z12="غ"),"غ",IF(AND(W12="صفر",X12="صفر",Y12="صفر",Z12="صفر"),"صفر",SUM(W12:Z12))) -> 80 | AB12: =IF(AND(AA12="غ"),"غ",IF(AND(AA12="صفر"),"صفر",AA12*80/200)) -> 32 | AC12: =IF(OR(AB12="",Z12=""),"",IF(OR(Z12<18,Z12="غ",AB12="غ",Z12="صفر",AB12="صفر"),"دون المستوى",IF(AB12>=86,"ممتاز",IF(AB12>=60,"جيد جداً",IF(AB12>=52,"جيد",IF(AB12>=40,"مقبول",IF(OR(AB12<50,AB12="غ",AB12="صفر"),"دون المستوى"))))))) ->  | AD12: 37 | AE12: 53 | AH12: =IF(AND(AD12="غ",AE12="غ",AF12="غ",AG12="غ"),"غ",IF(AND(AD12="صفر",AE12="صفر",AF12="صفر",AG12="صفر"),"صفر",SUM(AD12:AG12))) -> 90 | AI12: =IF(AND(AH12="غ"),"غ",IF(AND(AH12="صفر"),"صفر",AH12*40/200)) -> 18 | AJ12: =IF(OR(AI12="",AG12=""),"",IF(OR(AG12<18,AG12="غ",AI12="غ",AG12="صفر",AI12="صفر"),"دون المستوى",IF(AI12>=43,"ممتاز",IF(AI12>=30,"جيد جداً",IF(AI12>=26,"جيد",IF(AI12>=20,"مقبول",IF(OR(AI12<50,AI12="غ",AI12="صفر"),"دون المستوى"))))))) ->  | AK12: 39 | AL12: 50 | AO12: =IF(AND(AK12="غ",AL12="غ",AM12="غ",AN12="غ"),"غ",IF(AND(AK12="صفر",AL12="صفر",AM12="صفر",AN12="صفر"),"صفر",SUM(AK12:AN12))) -> 89 | AP12: =IF(AND(AO12="غ"),"غ",IF(AND(AO12="صفر"),"صفر",AO12*40/200)) -> 17.8 | AQ12: =IF(OR(AP12="",AN12=""),"",IF(OR(AN12<18,AN12="غ",AP12="غ",AN12="صفر",AP12="صفر"),"دون المستوى",IF(AP12>=43,"ممتاز",IF(AP12>=30,"جيد جداً",IF(AP12>=26,"جيد",IF(AP12>=20,"مقبول",IF(OR(AP12<50,AP12="غ",AP12="صفر"),"دون المستوى"))))))) ->  | AR12: 38 | AS12: 59 | AV12: =IF(AND(AR12="غ",AS12="غ",AT12="غ",AU12="غ"),"غ",IF(AND(AR12="صفر",AS12="صفر",AT12="صفر",AU12="صفر"),"صفر",SUM(AR12:AU12))) -> 97 | AW12: =IF(AND(AV12="غ"),"غ",IF(AND(AV12="صفر"),"صفر",AV12*40/200)) -> 19.4 | AX12: =IF(OR(AW12="",AU12=""),"",IF(OR(AU12<18,AU12="غ",AW12="غ",AU12="صفر",AW12="صفر"),"دون المستوى",IF(AW12>=43,"ممتاز",IF(AW12>=30,"جيد جداً",IF(AW12>=26,"جيد",IF(AW12>=20,"مقبول",IF(OR(AW12<50,AW12="غ",AW12="صفر"),"دون المستوى"))))))) ->  | AY12: 99 | AZ12: 99 | BA12: =IF(AND(AY12="غ",AZ12="غ"),"غ",IF(AND(AY12="صفر",AZ12="صفر"),"صفر",SUM(AY12:AZ12))) -> 198 | BB12: =IF(AND(BA12="غ"),"غ",IF(AND(BA12="صفر"),"صفر",BA12*20/200)) -> 19.8 | BC12: =IF(OR(BB12="",AZ12=""),"",IF(OR(AZ12="غ",BB12="غ",AZ12="صفر",BB12="صفر"),"دون المستوى",IF(BB12>=17,"ممتاز",IF(BB12>=15,"جيد جداً",IF(BB12>=13,"جيد",IF(BB12>=10,"مقبول",IF(OR(BB12<50,BB12="غ",BB12="صفر"),"دون المستوى"))))))) -> ممتاز | BD12: 98 | BE12: 97 | BF12: =IF(AND(BD12="غ",BE12="غ"),"غ",IF(AND(BD12="صفر",BE12="صفر"),"صفر",SUM(BD12:BE12))) -> 195 | BG12: =IF(AND(BF12="غ"),"غ",IF(AND(BF12="صفر"),"صفر",BF12*20/200)) -> 19.5 | BH12: =IF(OR(BG12="",BE12=""),"",IF(OR(BE12="غ",BG12="غ",BE12="صفر",BG12="صفر"),"دون المستوى",IF(BG12>=17,"ممتاز",IF(BG12>=15,"جيد جداً",IF(BG12>=13,"جيد",IF(BG12>=10,"مقبول",IF(OR(BG12<50,BG12="غ",BG12="صفر"),"دون المستوى"))))))) -> ممتاز | BI12: 99 | BJ12: 99 | BK12: =IF(AND(BI12="غ",BJ12="غ"),"غ",IF(AND(BI12="صفر",BJ12="صفر"),"صفر",SUM(BI12:BJ12))) -> 198 | BL12: =IF(AND(BK12="غ"),"غ",IF(AND(BK12="صفر"),"صفر",BK12*20/200)) -> 19.8 | BM12: =IF(OR(BL12="",BJ12=""),"",IF(OR(BJ12="غ",BL12="غ",BJ12="صفر",BL12="صفر"),"دون المستوى",IF(BL12>=17,"ممتاز",IF(BL12>=15,"جيد جداً",IF(BL12>=13,"جيد",IF(BL12>=10,"مقبول",IF(OR(BL12<50,BL12="غ",BL12="صفر"),"دون المستوى"))))))) -> ممتاز | BN12: 99 | BO12: 99 | BP12: =IF(AND(BN12="غ",BO12="غ"),"غ",IF(AND(BN12="صفر",BO12="صفر"),"صفر",SUM(BN12:BO12))) -> 198 | BQ12: =IF(AND(BP12="غ"),"غ",IF(AND(BP12="صفر"),"صفر",BP12*20/200)) -> 19.8 | BR12: =IF(OR(BQ12="",BO12=""),"",IF(OR(BO12="غ",BQ12="غ",BO12="صفر",BQ12="صفر"),"دون المستوى",IF(BQ12>=17,"ممتاز",IF(BQ12>=15,"جيد جداً",IF(BQ12>=13,"جيد",IF(BQ12>=10,"مقبول",IF(OR(BQ12<50,BQ12="غ",BQ12="صفر"),"دون المستوى"))))))) -> ممتاز | BS12: 97 | BT12: 98 | BU12: =IF(AND(BS12="غ",BT12="غ"),"غ",IF(AND(BS12="صفر",BT12="صفر"),"صفر",SUM(BS12:BT12))) -> 195 | BV12: =IF(AND(BU12="غ"),"غ",IF(AND(BU12="صفر"),"صفر",BU12*20/200)) -> 19.5 | BW12: =IF(OR(BV12="",BT12=""),"",IF(OR(BT12="غ",BV12="غ",BT12="صفر",BV12="صفر"),"دون المستوى",IF(BV12>=17,"ممتاز",IF(BV12>=15,"جيد جداً",IF(BV12>=13,"جيد",IF(BV12>=10,"مقبول",IF(OR(BV12<50,BV12="غ",BV12="صفر"),"دون المستوى"))))))) -> ممتاز | BX12: =IF(AND(AW12="غ",AP12="غ",AI12="غ",AB12="غ",U12="غ"),"غ",SUM(AW12,AP12,AI12,AB12,U12,BQ12,BV12)) -> 226.5 | BY12: =IF(OR(BX12="غ",BX12<$BX$11*0.5),"دون المستوى",IF(BX12>=$BX$11*0.85,"ممتاز",IF(BX12>=$BX$11*0.75,"جيد جدا",IF(BX12>=$BX$11*0.65,"جيد",IF(BX12>=$BX$11*0.5,"مقبول"))))) -> جيد | BZ12: =IF(AND(AW12="غ",AP12="غ",AI12="غ",AB12="غ",U12="غ"),"غ",SUM(AW12,AP12,AI12,AB12,U12)) -> 187.2 | CA12: 39 | CB12: 41 | CE12: =IF(AND(CA12="غ",CB12="غ",CC12="غ",CD12="غ"),"غ",IF(AND(CA12="صفر",CB12="صفر",CC12="صفر",CD12="صفر"),"صفر",SUM(CA12:CD12))) -> 80 | CF12: =IF(AND(CE12="غ"),"غ",IF(AND(CE12="صفر"),"صفر",CE12*40/200)) -> 16 | CG12: =IF(OR(CF12="",CD12=""),"",IF(OR(CD12<18,CD12="غ",CF12="غ",CD12="صفر",CF12="صفر"),"دون المستوى",IF(CF12>=43,"ممتاز",IF(CF12>=30,"جيد جداً",IF(CF12>=26,"جيد",IF(CF12>=20,"مقبول",IF(OR(CF12<50,CF12="غ",CF12="صفر"),"دون المستوى"))))))) ->  | CH12: =IF(OR(BX12="غ",CF12="غ"),"غ",BX12+CF12) -> 242.5 | CI12: =IF(ISNUMBER(BX12)=FALSE,MAX($G$12:$G$9859)-MIN($G$12:$G$9859)+COUNTIF($BX$12:BX12,BX12),RANK(BX12,$BX$12:$BX$124,0)) -> 1 | CK12: =IF(OR(S12<18,S12="غ",U12<50,U12="غ")," - عربى ","") ->  | CL12: =IF(OR(Z12<18,Z12="غ",AB12<40,AB12="غ")," - رياضيات ","") -> - رياضيات | CM12: =IF(OR(AG12<18,AG12="غ",AI12<20,AI12="غ")," - إنجليزى ","") -> - إنجليزى | CN12: =IF(OR(AN12<18,AN12="غ",AP12<20,AP12="غ")," - دراسات ","") -> - دراسات | CO12: =IF(OR(AU12<18,AU12="غ",AW12<20,AW12="غ")," - علوم ","") -> - علوم | CP12: =IF(OR(CD12<18,CD12="غ",CF12<20,CF12="غ")," - دين ","") -> - دين | CS12: =CONCATENATE(CK12,CL12,CM12,CN12,CO12,CP12) -> - رياضيات - إنجليزى - دراسات - علوم - دين | CV12: =IF(CS12="","ناجح","دور ثان") -> دور ثان | EC12: =IF(Q12<26,"عربى",0) -> 0 | ED12: =IF(X12<26,"رياضيات",0) -> 0 | EE12: =IF(AE12<26,"إنجليزى",0) -> 0 | EF12: =IF(AL12<26,"دراسات",0) -> 0 | EG12: =IF(AS12<26,"علوم",0) -> 0 | EH12: =IF(BB12<13,"فنى",0) -> 0 | EI12: =IF(BG12<13,"رياضى",0) -> 0 | EJ12: =IF(BQ12<13,"نشاط1",0) -> 0 | EK12: =IF(BV12<13,"نشاط2",0) -> 0 | EL12: =IF(CB12<26,"دين",0) -> 0
A13: 30801151703191 | B13: 2008-01-15 | E13: 71 | G13: =IF(H13="","",SUBTOTAL(3,$H$12:H13)) -> 2 | H13: فارس مجاهد على الليثى | J13: 15 | K13: 1 | L13: 2008 | M13: 16 | N13: 8 | O13: 8 | P13: 20 | Q13: 30 | R13: 20 | S13: 29 | T13: 99 | U13: 49.5 | V13: =IF(OR(U13="",S13=""),"",IF(OR(S13<18,S13="غ",U13="غ",S13="صفر",U13="صفر"),"دون المستوى",IF(U13>=85,"ممتاز",IF(U13>=75,"جيد جداً",IF(U13>=65,"جيد",IF(U13>=50,"مقبول",IF(OR(U13<50,U13="غ",U13="صفر"),"دون المستوى"))))))) -> دون المستوى | W13: 40 | X13: 54 | AA13: 94 | AB13: 37.6 | AD13: 40 | AE13: 57 | AH13: 97 | AI13: 19.4 | AK13: 40 | AL13: 52 | AO13: 92 | AP13: 18.4 | AR13: 38 | AS13: 56 | AV13: 94 | AW13: 18.8 | AY13: 99 | AZ13: 97 | BA13: 196 | BB13: 19.6 | BC13: ممتاز | BD13: 98 | BE13: 98 | BF13: 196 | BG13: 19.6 | BH13: ممتاز | BI13: 99 | BJ13: 97 | BK13: 196 | BL13: 19.6 | BM13: ممتاز | BN13: 97 | BO13: 99 | BP13: 196 | BQ13: 19.6 | BR13: ممتاز | BS13: 98 | BT13: 98 | BU13: 196 | BV13: 19.6 | BW13: ممتاز | BX13: 182.9 | BY13: مقبول | BZ13: 143.7 | CA13: 40 | CB13: 51 | CE13: 91 | CF13: 18.2 | CH13: 201.1 | CI13: =IF(ISNUMBER(BX13)=FALSE,MAX($G$12:$G$9859)-MIN($G$12:$G$9859)+COUNTIF($BX$12:BX13,BX13),RANK(BX13,$BX$12:$BX$124,0)) -> 2 | CK13: - عربى | CL13: - رياضيات | CM13: - إنجليزى | CN13: - دراسات | CO13: - علوم | CP13: - دين | CS13: - عربى - رياضيات - إنجليزى - دراسات - علوم - دين | CV13: دور ثان | EC13: 0 | ED13: 0 | EE13: 0 | EF13: 0 | EG13: 0 | EH13: 0 | EI13: 0 | EJ13: 0 | EK13: 0 | EL13: 0
A14: 30611291701152 | B14: 2006-11-29 | E14: 72 | G14: =IF(H14="","",SUBTOTAL(3,$H$12:H14)) -> 3 | H14: فارس محمد عبد الله محمد هدهد | J14: 29 | K14: 11 | L14: 2006 | M14: 2 | N14: 10 | O14: 9 | P14: 20 | Q14: 30 | R14: 20 | S14: 29 | T14: 99 | U14: 49.5 | V14: =IF(OR(U14="",S14=""),"",IF(AND(U14="غ",S14="غ"),"غ",IF(OR(S14<18,S14="غ",U14="غ",S14="صفر",U14="صفر"),"دون المستوى",IF(U14>=85,"ممتاز",IF(U14>=75,"جيد جداً",IF(U14>=65,"جيد",IF(U14>=50,"مقبول",IF(OR(U14<50,U14="غ",U14="صفر"),"دون المستوى")))))))) -> دون المستوى | W14: غ | X14: غ | Y14: غ | Z14: غ | AA14: غ | AB14: غ | AC14: دون المستوى | AD14: غ | AE14: غ | AF14: غ | AG14: غ | AH14: غ | AI14: غ | AJ14: دون المستوى | AK14: غ | AL14: غ | AM14: غ | AN14: غ | AO14: غ | AP14: غ | AQ14: دون المستوى | AR14: غ | AS14: غ | AT14: غ | AU14: غ | AV14: غ | AW14: غ | AX14: دون المستوى | AY14: غ | AZ14: غ | BA14: غ | BB14: غ | BC14: دون المستوى | BD14: غ | BE14: غ | BF14: غ | BG14: غ | BH14: دون المستوى | BI14: غ | BJ14: غ | BK14: غ | BL14: غ | BM14: دون المستوى | BN14: غ | BO14: غ | BP14: غ | BQ14: غ | BR14: دون المستوى | BS14: غ | BT14: غ | BU14: غ | BV14: غ | BW14: دون المستوى | BX14: 49.5 | BY14: دون المستوى | BZ14: 49.5 | CA14: غ | CB14: غ | CC14: غ | CD14: غ | CE14: غ | CF14: غ | CG14: دون المستوى | CH14: غ | CI14: =IF(ISNUMBER(BX14)=FALSE,MAX($G$12:$G$9859)-MIN($G$12:$G$9859)+COUNTIF($BX$12:BX14,BX14),RANK(BX14,$BX$12:$BX$124,0)) -> 5 | CK14: - عربى | CL14: - رياضيات | CM14: - إنجليزى | CN14: - دراسات | CO14: - علوم | CP14: - دين | CS14: - عربى - رياضيات - إنجليزى - دراسات - علوم - دين | CV14: دور ثان | EC14: 0 | ED14: 0 | EE14: 0 | EF14: 0 | EG14: 0 | EH14: 0 | EI14: 0 | EJ14: 0 | EK14: 0 | EL14: 0
A15: 30610251704438 | B15: 2006-10-25 | E15: 73 | G15: =IF(H15="","",SUBTOTAL(3,$H$12:H15)) -> 4 | H15: فهد محمد عبد الحليم سيد المرادي | J15: 25 | K15: 10 | L15: 2006 | M15: 6 | N15: 11 | O15: 9 | P15: غ | Q15: غ | R15: غ | S15: غ | T15: غ | U15: غ | V15: =IF(OR(U15="",S15=""),"",IF(AND(U15="غ",S15="غ"),"غ",IF(OR(S15<18,S15="غ",U15="غ",S15="صفر",U15="صفر"),"دون المستوى",IF(U15>=85,"ممتاز",IF(U15>=75,"جيد جداً",IF(U15>=65,"جيد",IF(U15>=50,"مقبول",IF(OR(U15<50,U15="غ",U15="صفر"),"دون المستوى")))))))) -> غ | W15: غ | X15: غ | Y15: غ | Z15: غ | AA15: غ | AB15: غ | AC15: دون المستوى | AD15: غ | AE15: غ | AF15: غ | AG15: غ | AH15: غ | AI15: غ | AJ15: دون المستوى | AK15: غ | AL15: غ | AM15: غ | AN15: غ | AO15: غ | AP15: غ | AQ15: دون المستوى | AR15: غ | AS15: غ | AT15: غ | AU15: غ | AV15: غ | AW15: غ | AX15: دون المستوى | AY15: غ | AZ15: غ | BA15: غ | BB15: غ | BC15: دون المستوى | BD15: غ | BE15: غ | BF15: غ | BG15: غ | BH15: دون المستوى | BI15: غ | BJ15: غ | BK15: غ | BL15: غ | BM15: دون المستوى | BN15: غ | BO15: غ | BP15: غ | BQ15: غ | BR15: دون المستوى | BS15: غ | BT15: غ | BU15: غ | BV15: غ | BW15: دون المستوى | BX15: غ | BY15: دون المستوى | BZ15: غ | CA15: غ | CB15: غ | CC15: غ | CD15: غ | CE15: غ | CF15: غ | CG15: دون المستوى | CH15: غ | CI15: =IF(ISNUMBER(BX15)=FALSE,MAX($G$12:$G$9859)-MIN($G$12:$G$9859)+COUNTIF($BX$12:BX15,BX15),RANK(BX15,$BX$12:$BX$124,0)) -> 6 | CK15: - عربى | CL15: - رياضيات | CM15: - إنجليزى | CN15: - دراسات | CO15: - علوم | CP15: - دين | CS15: - عربى - رياضيات - إنجليزى - دراسات - علوم - دين | CV15: دور ثان | EC15: 0 | ED15: 0 | EE15: 0 | EF15: 0 | EG15: 0 | EH15: 0 | EI15: 0 | EJ15: 0 | EK15: 0 | EL15: 0
A16: 30809101702152 | B16: 2008-09-10 | E16: 74 | G16: =IF(H16="","",SUBTOTAL(3,$H$12:H16)) -> 5 | H16: كريم أحمد عبد الرحمن السيد | J16: 10 | K16: 9 | L16: 2008 | M16: 21 | N16: 0 | O16: 8 | P16: 40 | Q16: 59 | T16: 99 | U16: 49.5 | W16: 39 | X16: 48 | AA16: 87 | AB16: 34.8 | AD16: 40 | AE16: 58 | AH16: 98 | AI16: 19.6 | AK16: 40 | AL16: 58 | AO16: 98 | AP16: 19.6 | AR16: 36 | AS16: 57 | AV16: 93 | AW16: 18.6 | AY16: 99 | AZ16: 97 | BA16: 196 | BB16: 19.6 | BC16: ممتاز | BD16: 98 | BE16: 98 | BF16: 196 | BG16: 19.6 | BH16: ممتاز | BI16: 99 | BJ16: 97 | BK16: 196 | BL16: 19.6 | BM16: ممتاز | BN16: 97 | BO16: 99 | BP16: 196 | BQ16: 19.6 | BR16: ممتاز | BS16: 98 | BT16: 98 | BU16: 196 | BV16: 19.6 | BW16: ممتاز | BX16: 181.3 | BY16: مقبول | BZ16: 142.1 | CA16: 40 | CB16: 44 | CE16: 84 | CF16: 16.8 | CH16: 198.1 | CI16: =IF(ISNUMBER(BX16)=FALSE,MAX($G$12:$G$9859)-MIN($G$12:$G$9859)+COUNTIF($BX$12:BX16,BX16),RANK(BX16,$BX$12:$BX$124,0)) -> 3 | CK16: - عربى | CL16: - رياضيات | CM16: - إنجليزى | CN16: - دراسات | CO16: - علوم | CP16: - دين | CS16: - عربى - رياضيات - إنجليزى - دراسات - علوم - دين | CV16: دور ثان | EC16: 0 | ED16: 0 | EE16: 0 | EF16: 0 | EG16: 0 | EH16: 0 | EI16: 0 | EJ16: 0 | EK16: 0 | EL16: 0
A17: 30809291706175 | B17: 2008-09-29 | E17: 75 | G17: =IF(H17="","",SUBTOTAL(3,$H$12:H17)) -> 6 | H17: كريم شوقى السيد محمد محمد | J17: 29 | K17: 9 | L17: 2008 | M17: 2 | N17: 0 | O17: 8 | P17: 37 | Q17: 53 | T17: 90 | U17: 45 | W17: 38 | X17: 34 | AA17: 72 | AB17: 28.8 | AD17: 35 | AE17: 24 | AH17: 59 | AI17: 11.8 | AK17: 37 | AL17: 44 | AO17: 81 | AP17: 16.2 | AR17: 36 | AS17: 45 | AV17: 81 | AW17: 16.2 | AY17: 99 | AZ17: 97 | BA17: 196 | BB17: 19.6 | BC17: ممتاز | BD17: 98 | BE17: 98 | BF17: 196 | BG17: 19.6 | BH17: ممتاز | BI17: 99 | BJ17: 97 | BK17: 196 | BL17: 19.6 | BM17: ممتاز | BN17: 97 | BO17: 99 | BP17: 196 | BQ17: 19.6 | BR17: ممتاز | BS17: 98 | BT17: 98 | BU17: 196 | BV17: 19.6 | BW17: ممتاز | BX17: 157.2 | BY17: دون المستوى | BZ17: 118 | CA17: 40 | CB17: 42 | CE17: 82 | CF17: 16.4 | CH17: 173.6 | CI17: =IF(ISNUMBER(BX17)=FALSE,MAX($G$12:$G$9859)-MIN($G$12:$G$9859)+COUNTIF($BX$12:BX17,BX17),RANK(BX17,$BX$12:$BX$124,0)) -> 4 | CK17: - عربى | CL17: - رياضيات | CM17: - إنجليزى | CN17: - دراسات | CO17: - علوم | CP17: - دين | CS17: - عربى - رياضيات - إنجليزى - دراسات - علوم - دين | CV17: دور ثان | EC17: 0 | ED17: 0 | EE17: إنجليزى | EF17: 0 | EG17: 0 | EH17: 0 | EI17: 0 | EJ17: 0 | EK17: 0 | EL17: 0
G18: =IF(H18="","",SUBTOTAL(3,$H$12:H18)) -> 
G19: =IF(H19="","",SUBTOTAL(3,$H$12:H19)) -> 
G20: =IF(H20="","",SUBTOTAL(3,$H$12:H20)) -> 
G21: =IF(H21="","",SUBTOTAL(3,$H$12:H21)) -> 
G22: =IF(H22="","",SUBTOTAL(3,$H$12:H22)) -> 
G23: =IF(H23="","",SUBTOTAL(3,$H$12:H23)) -> 
G24: =IF(H24="","",SUBTOTAL(3,$H$12:H24)) -> 
G25: =IF(H25="","",SUBTOTAL(3,$H$12:H25)) ->  | DK25: IF(OR(U14="";S14="");"";IF(AND(U14="غ";S14="غ");"غ";IF(OR(S14<18;S14="غ";U14="غ";S14="صفر";U14="صفر");"دون المستوى";IF(U14>=85;"ممتاز";IF(U14>=75;"جيد جداً";IF(U14>=65;"جيد";IF(U14>=50;"مقبول")))))))
G26: =IF(H26="","",SUBTOTAL(3,$H$12:H26)) ->  | DK26: IF(OR(U13="";S13="");"";IF(OR(S13<18;S13="غ";U13="غ";S13="صفر";U13="صفر");"دون المستوى";IF(U13>=85;"ممتاز";IF(U13>=75;"جيد جداً";IF(U13>=65;"جيد";IF(U13>=50;"مقبول";IF(OR(U13<50;U13="غ";U13="صفر");"دون المستوى")))))))
G27: =IF(H27="","",SUBTOTAL(3,$H$12:H27)) -> 
G28: =IF(H28="","",SUBTOTAL(3,$H$12:H28)) -> 
G29: =IF(H29="","",SUBTOTAL(3,$H$12:H29)) -> 
G30: =IF(H30="","",SUBTOTAL(3,$H$12:H30)) -> 
G31: =IF(H31="","",SUBTOTAL(3,$H$12:H31)) -> 
G32: =IF(H32="","",SUBTOTAL(3,$H$12:H32)) -> 
G33: =IF(H33="","",SUBTOTAL(3,$H$12:H33)) -> 
G34: =IF(H34="","",SUBTOTAL(3,$H$12:H34)) -> 
G35: =IF(H35="","",SUBTOTAL(3,$H$12:H35)) -> 
G36: =IF(H36="","",SUBTOTAL(3,$H$12:H36)) -> 
G37: =IF(H37="","",SUBTOTAL(3,$H$12:H37)) -> 
G38: =IF(H38="","",SUBTOTAL(3,$H$12:H38)) -> 
G39: =IF(H39="","",SUBTOTAL(3,$H$12:H39)) -> 
G40: =IF(H40="","",SUBTOTAL(3,$H$12:H40)) -> 
G41: =IF(H41="","",SUBTOTAL(3,$H$12:H41)) -> 
G42: =IF(H42="","",SUBTOTAL(3,$H$12:H42)) -> 
G43: =IF(H43="","",SUBTOTAL(3,$H$12:H43)) -> 
G44: =IF(H44="","",SUBTOTAL(3,$H$12:H44)) -> 
G45: =IF(H45="","",SUBTOTAL(3,$H$12:H45)) -> 
G46: =IF(H46="","",SUBTOTAL(3,$H$12:H46)) -> 
G47: =IF(H47="","",SUBTOTAL(3,$H$12:H47)) -> 
G48: =IF(H48="","",SUBTOTAL(3,$H$12:H48)) -> 
G49: =IF(H49="","",SUBTOTAL(3,$H$12:H49)) -> 
G50: =IF(H50="","",SUBTOTAL(3,$H$12:H50)) -> 
G51: =IF(H51="","",SUBTOTAL(3,$H$12:H51)) -> 
G52: =IF(H52="","",SUBTOTAL(3,$H$12:H52)) -> 
G53: =IF(H53="","",SUBTOTAL(3,$H$12:H53)) -> 
G54: =IF(H54="","",SUBTOTAL(3,$H$12:H54)) -> 
G55: =IF(H55="","",SUBTOTAL(3,$H$12:H55)) -> 
G56: =IF(H56="","",SUBTOTAL(3,$H$12:H56)) -> 
G57: =IF(H57="","",SUBTOTAL(3,$H$12:H57)) -> 
G58: =IF(H58="","",SUBTOTAL(3,$H$12:H58)) -> 
G59: =IF(H59="","",SUBTOTAL(3,$H$12:H59)) -> 
G60: =IF(H60="","",SUBTOTAL(3,$H$12:H60)) -> 
G61: =IF(H61="","",SUBTOTAL(3,$H$12:H61)) -> 
G62: =IF(H62="","",SUBTOTAL(3,$H$12:H62)) -> 
G63: =IF(H63="","",SUBTOTAL(3,$H$12:H63)) -> 
G64: =IF(H64="","",SUBTOTAL(3,$H$12:H64)) -> 
G65: =IF(H65="","",SUBTOTAL(3,$H$12:H65)) -> 
G66: =IF(H66="","",SUBTOTAL(3,$H$12:H66)) -> 
G67: =IF(H67="","",SUBTOTAL(3,$H$12:H67)) -> 
G68: =IF(H68="","",SUBTOTAL(3,$H$12:H68)) -> 
G69: =IF(H69="","",SUBTOTAL(3,$H$12:H69)) -> 
G70: =IF(H70="","",SUBTOTAL(3,$H$12:H70)) -> 
G71: =IF(H71="","",SUBTOTAL(3,$H$12:H71)) -> 
G72: =IF(H72="","",SUBTOTAL(3,$H$12:H72)) -> 
G73: =IF(H73="","",SUBTOTAL(3,$H$12:H73)) -> 
G74: =IF(H74="","",SUBTOTAL(3,$H$12:H74)) -> 
G75: =IF(H75="","",SUBTOTAL(3,$H$12:H75)) -> 
G76: =IF(H76="","",SUBTOTAL(3,$H$12:H76)) -> 
G77: =IF(H77="","",SUBTOTAL(3,$H$12:H77)) -> 
G78: =IF(H78="","",SUBTOTAL(3,$H$12:H78)) -> 
G79: =IF(H79="","",SUBTOTAL(3,$H$12:H79)) -> 
G80: =IF(H80="","",SUBTOTAL(3,$H$12:H80)) -> 
G81: =IF(H81="","",SUBTOTAL(3,$H$12:H81)) -> 
G82: =IF(H82="","",SUBTOTAL(3,$H$12:H82)) -> 
G83: =IF(H83="","",SUBTOTAL(3,$H$12:H83)) -> 
G84: =IF(H84="","",SUBTOTAL(3,$H$12:H84)) -> 
G85: =IF(H85="","",SUBTOTAL(3,$H$12:H85)) -> 
G86: =IF(H86="","",SUBTOTAL(3,$H$12:H86)) -> 
G87: =IF(H87="","",SUBTOTAL(3,$H$12:H87)) -> 
G88: =IF(H88="","",SUBTOTAL(3,$H$12:H88)) -> 
G89: =IF(H89="","",SUBTOTAL(3,$H$12:H89)) -> 
G90: =IF(H90="","",SUBTOTAL(3,$H$12:H90)) -> 
G91: =IF(H91="","",SUBTOTAL(3,$H$12:H91)) -> 
G92: =IF(H92="","",SUBTOTAL(3,$H$12:H92)) -> 
G93: =IF(H93="","",SUBTOTAL(3,$H$12:H93)) -> 
G94: =IF(H94="","",SUBTOTAL(3,$H$12:H94)) -> 
G95: =IF(H95="","",SUBTOTAL(3,$H$12:H95)) -> 
G96: =IF(H96="","",SUBTOTAL(3,$H$12:H96)) -> 
G97: =IF(H97="","",SUBTOTAL(3,$H$12:H97)) -> 
G98: =IF(H98="","",SUBTOTAL(3,$H$12:H98)) -> 
G99: =IF(H99="","",SUBTOTAL(3,$H$12:H99)) -> 
G100: =IF(H100="","",SUBTOTAL(3,$H$12:H100)) -> 
G101: =IF(H101="","",SUBTOTAL(3,$H$12:H101)) -> 
G102: =IF(H102="","",SUBTOTAL(3,$H$12:H102)) -> 
G103: =IF(H103="","",SUBTOTAL(3,$H$12:H103)) -> 
G104: =IF(H104="","",SUBTOTAL(3,$H$12:H104)) -> 
G105: =IF(H105="","",SUBTOTAL(3,$H$12:H105)) -> 
G106: =IF(H106="","",SUBTOTAL(3,$H$12:H106)) -> 
G107: =IF(H107="","",SUBTOTAL(3,$H$12:H107)) -> 
G108: =IF(H108="","",SUBTOTAL(3,$H$12:H108)) -> 
G109: =IF(H109="","",SUBTOTAL(3,$H$12:H109)) -> 
G110: =IF(H110="","",SUBTOTAL(3,$H$12:H110)) -> 
G111: =IF(H111="","",SUBTOTAL(3,$H$12:H111)) -> 
G112: =IF(H112="","",SUBTOTAL(3,$H$12:H112)) -> 
G113: =IF(H113="","",SUBTOTAL(3,$H$12:H113)) -> 
G114: =IF(H114="","",SUBTOTAL(3,$H$12:H114)) -> 
G115: =IF(H115="","",SUBTOTAL(3,$H$12:H115)) -> 
G116: =IF(H116="","",SUBTOTAL(3,$H$12:H116)) -> 
G117: =IF(H117="","",SUBTOTAL(3,$H$12:H117)) -> 
G118: =IF(H118="","",SUBTOTAL(3,$H$12:H118)) -> 
G119: =IF(H119="","",SUBTOTAL(3,$H$12:H119)) -> 
G120: =IF(H120="","",SUBTOTAL(3,$H$12:H120)) -> 
G121: =IF(H121="","",SUBTOTAL(3,$H$12:H121)) -> 
G122: =IF(H122="","",SUBTOTAL(3,$H$12:H122)) -> 
G123: =IF(H123="","",SUBTOTAL(3,$H$12:H123)) -> 
G124: =IF(H124="","",SUBTOTAL(3,$H$12:H124)) -> 
G125: =IF(H125="","",SUBTOTAL(3,$H$12:H125)) -> 
G126: =IF(H126="","",SUBTOTAL(3,$H$12:H126)) -> 
G127: =IF(H127="","",SUBTOTAL(3,$H$12:H127)) -> 
G128: =IF(H128="","",SUBTOTAL(3,$H$12:H128)) -> 
G129: =IF(H129="","",SUBTOTAL(3,$H$12:H129)) -> 
G130: =IF(H130="","",SUBTOTAL(3,$H$12:H130)) -> 
G131: =IF(H131="","",SUBTOTAL(3,$H$12:H131)) -> 
G132: =IF(H132="","",SUBTOTAL(3,$H$12:H132)) -> 
G133: =IF(H133="","",SUBTOTAL(3,$H$12:H133)) -> 
G134: =IF(H134="","",SUBTOTAL(3,$H$12:H134)) -> 
G135: =IF(H135="","",SUBTOTAL(3,$H$12:H135)) -> 
G136: =IF(H136="","",SUBTOTAL(3,$H$12:H136)) -> 
G137: =IF(H137="","",SUBTOTAL(3,$H$12:H137)) -> 
G138: =IF(H138="","",SUBTOTAL(3,$H$12:H138)) -> 
G139: =IF(H139="","",SUBTOTAL(3,$H$12:H139)) -> 
G140: =IF(H140="","",SUBTOTAL(3,$H$12:H140)) -> 
G141: =IF(H141="","",SUBTOTAL(3,$H$12:H141)) -> 
G142: =IF(H142="","",SUBTOTAL(3,$H$12:H142)) -> 
G143: =IF(H143="","",SUBTOTAL(3,$H$12:H143)) -> 
G144: =IF(H144="","",SUBTOTAL(3,$H$12:H144)) -> 
G145: =IF(H145="","",SUBTOTAL(3,$H$12:H145)) -> 
G146: =IF(H146="","",SUBTOTAL(3,$H$12:H146)) -> 
G147: =IF(H147="","",SUBTOTAL(3,$H$12:H147)) -> 
G148: =IF(H148="","",SUBTOTAL(3,$H$12:H148)) -> 
G149: =IF(H149="","",SUBTOTAL(3,$H$12:H149)) -> 
G150: =IF(H150="","",SUBTOTAL(3,$H$12:H150)) -> 
G151: =IF(H151="","",SUBTOTAL(3,$H$12:H151)) -> 
G152: =IF(H152="","",SUBTOTAL(3,$H$12:H152)) -> 
G153: =IF(H153="","",SUBTOTAL(3,$H$12:H153)) -> 
G154: =IF(H154="","",SUBTOTAL(3,$H$12:H154)) -> 
G155: =IF(H155="","",SUBTOTAL(3,$H$12:H155)) -> 
G156: =IF(H156="","",SUBTOTAL(3,$H$12:H156)) -> 
G157: =IF(H157="","",SUBTOTAL(3,$H$12:H157)) -> 
G158: =IF(H158="","",SUBTOTAL(3,$H$12:H158)) -> 
G159: =IF(H159="","",SUBTOTAL(3,$H$12:H159)) -> 
G160: =IF(H160="","",SUBTOTAL(3,$H$12:H160)) -> 
G161: =IF(H161="","",SUBTOTAL(3,$H$12:H161)) -> 
G162: =IF(H162="","",SUBTOTAL(3,$H$12:H162)) -> 
G163: =IF(H163="","",SUBTOTAL(3,$H$12:H163)) -> 
G164: =IF(H164="","",SUBTOTAL(3,$H$12:H164)) -> 
G165: =IF(H165="","",SUBTOTAL(3,$H$12:H165)) -> 
G166: =IF(H166="","",SUBTOTAL(3,$H$12:H166)) -> 
G167: =IF(H167="","",SUBTOTAL(3,$H$12:H167)) -> 
G168: =IF(H168="","",SUBTOTAL(3,$H$12:H168)) -> 
G169: =IF(H169="","",SUBTOTAL(3,$H$12:H169)) -> 
G170: =IF(H170="","",SUBTOTAL(3,$H$12:H170)) -> 
G171: =IF(H171="","",SUBTOTAL(3,$H$12:H171)) -> 
G172: =IF(H172="","",SUBTOTAL(3,$H$12:H172)) -> 
G173: =IF(H173="","",SUBTOTAL(3,$H$12:H173)) -> 
G174: =IF(H174="","",SUBTOTAL(3,$H$12:H174)) -> 
G175: =IF(H175="","",SUBTOTAL(3,$H$12:H175)) -> 
G176: =IF(H176="","",SUBTOTAL(3,$H$12:H176)) -> 
G177: =IF(H177="","",SUBTOTAL(3,$H$12:H177)) -> 
G178: =IF(H178="","",SUBTOTAL(3,$H$12:H178)) -> 
G179: =IF(H179="","",SUBTOTAL(3,$H$12:H179)) -> 
G180: =IF(H180="","",SUBTOTAL(3,$H$12:H180)) -> 
G181: =IF(H181="","",SUBTOTAL(3,$H$12:H181)) -> 
G182: =IF(H182="","",SUBTOTAL(3,$H$12:H182)) -> 
G183: =IF(H183="","",SUBTOTAL(3,$H$12:H183)) -> 
G184: =IF(H184="","",SUBTOTAL(3,$H$12:H184)) -> 
G185: =IF(H185="","",SUBTOTAL(3,$H$12:H185)) -> 
G186: =IF(H186="","",SUBTOTAL(3,$H$12:H186)) -> 
G187: =IF(H187="","",SUBTOTAL(3,$H$12:H187)) -> 
G188: =IF(H188="","",SUBTOTAL(3,$H$12:H188)) -> 
G189: =IF(H189="","",SUBTOTAL(3,$H$12:H189)) -> 
G190: =IF(H190="","",SUBTOTAL(3,$H$12:H190)) -> 
G191: =IF(H191="","",SUBTOTAL(3,$H$12:H191)) -> 
G192: =IF(H192="","",SUBTOTAL(3,$H$12:H192)) -> 
G193: =IF(H193="","",SUBTOTAL(3,$H$12:H193)) -> 
G194: =IF(H194="","",SUBTOTAL(3,$H$12:H194)) -> 
G195: =IF(H195="","",SUBTOTAL(3,$H$12:H195)) -> 
G196: =IF(H196="","",SUBTOTAL(3,$H$12:H196)) -> 
G197: =IF(H197="","",SUBTOTAL(3,$H$12:H197)) -> 
G198: =IF(H198="","",SUBTOTAL(3,$H$12:H198)) -> 
G199: =IF(H199="","",SUBTOTAL(3,$H$12:H199)) -> 
G200: =IF(H200="","",SUBTOTAL(3,$H$12:H200)) -> 
... 274 more rows

Sheet شهادات الأوائل (hidden)
A2: إدارة قويسنا التعليمية | P2: الــرابـــــــــــــع
A3: مدرسة / منشاة دملو الإبتدائية0 | E3: رقم الجلوس | G3: =LOOKUP(F4,AB7:AB23,'شيت الرابع'!#REF!) ->  | K3: =IF(L5>=90%,"بارك الله لك","") -> 
A4: الاســـم/ | B4: =LOOKUP(F4,AB7:AB22,'شيت الرابع'!#REF!) ->  | F4: 1 | J4: =LOOKUP(F4,AB7:AB23,'شيت الرابع'!#REF!) ->  | K4: الترتيب | L4: النسبة
A5: الصف الرابع | D5: نتيجة امتحان اخرالعام 2013/2012 | K5: =LOOKUP(F4,AB7:AB23,'شيت الرابع'!#REF!) ->  | L5: =K9/K7 -> 
A6: النهاية | B6: عربي | C6: حساب | D6: انجليزي | E6: علوم | F6: دراسات | G6: فنى | H6: رياضى | I6: نشاط1 | J6: نشاط2 | K6: المجموع | L6: دين
A7: الكبرى | B7: 100 | C7: 80 | D7: 40 | E7: 40 | F7: 40 | G7: 20 | H7: 20 | I7: 20 | J7: 20 | K7: 380 | L7: 40 | Q7: الرئيسية | AB7: 1
A8: الصغرى | B8: 50 | C8: 40 | D8: 20 | E8: 20 | F8: 20 | G8: 10 | H8: 10 | I8: 10 | J8: 10 | K8: 190 | L8: 20 | AB8: 2
A9: الدرجة | B9: =LOOKUP(F4,AB7:AB23,'شيت الرابع'!#REF!) ->  | C9: =LOOKUP(F4,AB7:AB23,'شيت الرابع'!#REF!) ->  | D9: =LOOKUP(F4,AB7:AB23,'شيت الرابع'!#REF!) ->  | E9: =LOOKUP(F4,AB7:AB23,'شيت الرابع'!#REF!) ->  | F9: =LOOKUP(F4,AB7:AB23,'شيت الرابع'!#REF!) ->  | G9: =LOOKUP(F4,AB7:AB23,'شيت الرابع'!#REF!) ->  | H9: =LOOKUP(F4,AB7:AB23,'شيت الرابع'!#REF!) ->  | I9: =LOOKUP(F4,AB7:AB23,'شيت الرابع'!#REF!) ->  | J9: =LOOKUP(F4,AB7:AB23,'شيت الرابع'!#REF!) ->  | K9: =LOOKUP(F4,AB7:AB23,'شيت الرابع'!#REF!) ->  | L9: =LOOKUP(F4,AB7:AB23,'شيت الرابع'!#REF!) ->  | AB9: 3
A10: ش / ط | D10: وكيل المدرسة | K10: مديرة المدرسة | O10: الإســـــــــــم | AB10: 4
A11: عايده | AB11: 5
AB12: 6
AB13: 7
AB14: 8
AB15: 9
O16: رقم الجلوس | AB16: 10
A17: إدارة قويسنا التعليمية | F17: =F4+1 -> 2 | AB17: 11
A18: مدرسة / منشاة دملو الإبتدائية0 | E18: رقم الجلوس | G18: =LOOKUP(F17,AB7:AB23,'شيت الرابع'!#REF!) ->  | K18: =IF(L20>=90%,"بارك الله لك","") ->  | AB18: 12
A19: الاســـم/ | B19: =LOOKUP(F17,AB7:AB22,'شيت الرابع'!#REF!) ->  | J19: =LOOKUP(F17,AB7:AB23,'شيت الرابع'!#REF!) ->  | K19: الترتيب | L19: النسبة المئوية | AB19: 13
A20: الصف الرابع | D20: نتيجة امتحان اخرالعام 2013/2012 | K20: =LOOKUP(F17,AB7:AB23,'شيت الرابع'!#REF!) ->  | L20: =K24/K22 ->  | AB20: 14
A21: النهاية | B21: عربي | C21: حساب | D21: انجليزي | E21: علوم | F21: دراسات | G21: فنى | H21: رياضى | I21: نشاط1 | J21: نشاط2 | K21: المجموع | L21: دين | AB21: 15
A22: الكبرى | B22: 100 | C22: 80 | D22: 40 | E22: 40 | F22: 40 | G22: 20 | H22: 20 | I22: 20 | J22: 20 | K22: 380 | L22: 40 | AB22: 16
A23: الصغرى | B23: 50 | C23: 40 | D23: 20 | E23: 20 | F23: 20 | G23: 10 | H23: 10 | I23: 10 | J23: 10 | K23: 190 | L23: 20 | AB23: 17
A24: الدرجة | B24: =LOOKUP(F17,AB7:AB23,'شيت الرابع'!#REF!) ->  | C24: =LOOKUP(F17,AB7:AB23,'شيت الرابع'!#REF!) ->  | D24: =LOOKUP(F17,AB7:AB23,'شيت الرابع'!#REF!) ->  | E24: =LOOKUP(F17,AB7:AB23,'شيت الرابع'!#REF!) ->  | F24: =LOOKUP(F17,AB7:AB23,'شيت الرابع'!#REF!) ->  | G24: =LOOKUP(F17,AB7:AB23,'شيت الرابع'!#REF!) ->  | H24: =LOOKUP(F17,AB7:AB23,'شيت الرابع'!#REF!) ->  | I24: =LOOKUP(F17,AB7:AB23,'شيت الرابع'!#REF!) ->  | J24: =LOOKUP(F17,AB7:AB23,'شيت الرابع'!#REF!) ->  | K24: =LOOKUP(F17,AB7:AB23,'شيت الرابع'!#REF!) ->  | L24: =LOOKUP(F17,AB7:AB23,'شيت الرابع'!#REF!) -> 
A25: ش / ط | D25: وكيل المدرسة | K25: مديرة المدرسة
A26: عايده
A30: إدارة قويسنا التعليمية | F30: =F17+1 -> 3
A31: مدرسة / منشاة دملو الإبتدائية0 | E31: رقم الجلوس | G31: =LOOKUP(F30,AB7:AB23,'شيت الرابع'!#REF!) ->  | K31: =IF(L33>=90%,"بارك الله لك","") -> 
A32: الاســـم/ | B32: =LOOKUP(F30,AB7:AB22,'شيت الرابع'!#REF!) ->  | J32: =LOOKUP(F30,AB7:AB23,'شيت الرابع'!#REF!) ->  | K32: الترتيب | L32: النسبة المئوية
A33: الصف الرابع | D33: نتيجة امتحان اخرالعام 2013/2012 | K33: =LOOKUP(F30,AB7:AB23,'شيت الرابع'!#REF!) ->  | L33: =K37/K35 -> 
A34: النهاية | B34: عربي | C34: حساب | D34: انجليزي | E34: علوم | F34: دراسات | G34: فنى | H34: رياضى | I34: نشاط1 | J34: نشاط2 | K34: المجموع | L34: دين
A35: الكبرى | B35: 100 | C35: 80 | D35: 40 | E35: 40 | F35: 40 | G35: 20 | H35: 20 | I35: 20 | J35: 20 | K35: 380 | L35: 40
A36: الصغرى | B36: 50 | C36: 40 | D36: 20 | E36: 20 | F36: 20 | G36: 10 | H36: 10 | I36: 10 | J36: 10 | K36: 190 | L36: 20
A37: الدرجة | B37: =LOOKUP(F30,AB7:AB23,'شيت الرابع'!#REF!) ->  | C37: =LOOKUP(F30,AB7:AB23,'شيت الرابع'!#REF!) ->  | D37: =LOOKUP(F30,AB7:AB23,'شيت الرابع'!#REF!) ->  | E37: =LOOKUP(F30,AB7:AB23,'شيت الرابع'!#REF!) ->  | F37: =LOOKUP(F30,AB7:AB23,'شيت الرابع'!#REF!) ->  | G37: =LOOKUP(F30,AB7:AB23,'شيت الرابع'!#REF!) ->  | H37: =LOOKUP(F30,AB7:AB23,'شيت الرابع'!#REF!) ->  | I37: =LOOKUP(F30,AB7:AB23,'شيت الرابع'!#REF!) ->  | J37: =LOOKUP(F30,AB7:AB23,'شيت الرابع'!#REF!) ->  | K37: =LOOKUP(F30,AB7:AB23,'شيت الرابع'!#REF!) ->  | L37: =LOOKUP(F30,AB7:AB23,'شيت الرابع'!#REF!) -> 
A38: ش / ط | D38: وكيل المدرسة | K38: مديرة المدرسة
A39: عايده
